Cogmind - Beta 9.4 @@@ ROGUE MODE // 2020.01.15 @ 00:37:27 Player: Weird_Skeleton Result: Destroyed by S-10 Pest with Light Assault Rifle Performance ------------- Evolutions (2) 1000 Regions Visited (3) 600 Robots Destroyed (16) 80 Value Destroyed (449) 449 Prototype IDs (0) 0 Alien Tech Used (0) 0 Bonus (0) 0 TOTAL SCORE: 2129 Bonus ------- None Cogmind --------- Core Integrity 0/550 Matter 41/300 Energy 100/100 System Corruption 0% Temperature Cool (0) Movement Core (150) Ox2 Location -8/Materials Parts ------- > --- POWER (1) -------- (None) > --- PROPULSION (4) --- (None) > --- UTILITY (3) ------ Medium Storage Unit > --- WEAPON (3) ------- (None) > --- INVENTORY (8) ---- Heat Sink High-capacity Storage Unit Hardened Medium Armor Plating EM Pulse Gun Datajack Scythe Peak State ------------ > --- POWER ------------ Light Ion Engine > --- PROPULSION ------- Aluminum Leg Aluminum Leg > --- UTILITY ---------- Medium Storage Unit Shield Generator Shield Generator > --- WEAPON ----------- Beam Rifle Grenade Launcher > --- INVENTORY -------- Heat Sink High-capacity Storage Unit EM Pulse Gun Beam Rifle Light Cannon Datajack Scythe [Rating: 12] Favorites ----------- Power Light Ion Engine Engine Light Ion Engine Propulsion Aluminum Leg Leg Aluminum Leg Utility Shield Generator Device Shield Generator Storage Medium Storage Unit Weapon Light Cannon Energy Gun EM Pulse Gun Ballistic Gun Light Assault Rifle Ballistic Cannon Light Cannon Launcher Grenade Launcher Build | -11 -10 -9 -8 ------- Run | Scr Mat Mat Mat Slots Evolved 4 | . . 2 2 Power . | . . . . Propulsion 2 | . . 2 . Utility 1 | . . . 1 Weapon 1 | . . . 1 Parts Attached 27 | 6 13 4 4 Power 3 | 1 2 . . Engine 3 | 1 2 . . Core . | . . . . Reactor . | . . . . Propulsion 5 | 2 3 . . Treads . | . . . . Leg 5 | 2 3 . . Wheel . | . . . . Hover . | . . . . Flight . | . . . . Utility 9 | 1 4 2 2 Device 5 | . 2 1 2 Storage 4 | 1 2 1 . Processor . | . . . . Hackware . | . . . . Protection . | . . . . Artifact . | . . . . Weapon 10 | 2 4 2 2 Energy Gun 6 | 1 3 1 1 Energy Cannon . | . . . . Ballistic Gun 1 | 1 . . . Ballistic Cannon 2 | . 1 . 1 Launcher 1 | . . 1 . Special Weapon . | . . . . Impact Weapon . | . . . . Slashing Weapon . | . . . . Piercing Weapon . | . . . . Special Melee Weapon . | . . . . Unidentified Prototypes . | . . . . Parts Lost 8 | . 1 . 7 Power 1 | . . . 1 Propulsion 2 | . . . 2 Utility 1 | . . . 1 Weapon 4 | . 1 . 3 Highest Loss Streak 6 | . 1 . 6 Average Slot Usage (%) 84 | . 99 77 59 Engine 11 | . 14 11 7 Leg 23 | . 28 22 14 Device 12 | . 13 11 10 Storage 12 | . 14 11 9 Energy Gun 11 | . 13 11 6 Ballistic Gun 3 | . 6 . . Ballistic Cannon 7 | . 7 8 7 Launcher 1 | . . 2 4 Naked Turns . | . . . . Heaviest Build 41 | 10 41 41 23 Greatest Support 20 | 20 20 20 20 Greatest Overweight (x) 4 | . 2 2 4 Average Overweight (x) . | . . . . Largest Inventory Capacity 12 | 6 12 12 8 Average Capacity 8 | 4 8 10 8 Most Carried 10 | 4 8 10 7 Average Carried 6 | 2 7 8 5 Final Capacity 12 | 6 12 8 8 Final Carried 8 | 2 8 8 6 Class Distribution -------------------- 68% | Mutant 21% | Scavenger-Mutant 8% | Scavenger-Tank Dominant Class ---------------- Mutant | -10/Materials Mutant | -9/Materials Mutant | -8/Materials Resources | -11 -10 -9 -8 ----------- Run | Scr Mat Mat Mat Matter Collected 428 | 228 156 44 . Remotely . | . . . . Salvage Created 384 | . 315 69 . Parts 32 | . 27 5 . Haulers Intercepted . | . . . . Recyclers Shooed . | . . . . Parts Field Recycled . | . . . . Retrieved Matter . | . . . . Parts Self-Destructed . | . . . . Prevented . | . . . . Kills | -11 -10 -9 -8 ------- Run | Scr Mat Mat Mat Combat Hostiles Destroyed 14 | . 12 2 . Guns 6 | . 5 1 . Cannons 7 | . 6 1 . AOE 1 | . 1 . . Classes Destroyed 5 | . 2 2 1 Operator 1 | . . . 1 Watcher 1 | . . 1 . Swarmer 6 | . 6 . . Grunt 6 | . 6 . . Sentry 2 | . . 2 . Best Kill Streak 5 | . 5 2 1 Combat Bots Only 5 | . 5 1 . Max Kills in Single Turn 1 | . 1 1 1 Gunslinging . | . . . . Exploded 1 | . 1 . . Melee . | . . . . Uniques/NPCs Destroyed . | . . . . Combat | -11 -10 -9 -8 -------- Run | Scr Mat Mat Mat Damage Taken 1679 | . 440 258 981 Core 683 | . 67 59 557 Absorbed by Shields 328 | . 167 66 95 Core Remaining (%) 86 | 100 73 85 . Volleys Fired 63 | . 46 12 5 Largest 3 | . 2 2 3 Hottest 121 | . 75 86 121 Shots Fired 119 | . 87 20 12 Gun 72 | . 59 8 5 Cannon 37 | . 28 4 5 Launcher 10 | . . 8 2 Special . | . . . . Kinetic 55 | . 46 4 5 Thermal 15 | . 2 8 5 Explosive 10 | . . 8 2 Electromagnetic 39 | . 39 . . Robot Hit Streak 9 | . 7 9 2 Robot Miss Streak 7 | . 7 4 2 Penetration Max . | . . . . Secondary Targets . | . . . . Shots Hit Robots 63 | . 44 14 5 Core Hits 24 | . 15 7 2 Critical Hits 2 | . 2 . . Critical Kills 1 | . 1 . . Critical Parts Destroyed 1 | . 1 . . Melee Attacks . | . . . . Impact . | . . . . Slashing . | . . . . Piercing . | . . . . Sneak Attacks . | . . . . Combat Hostiles . | . . . . Follow-up Attacks . | . . . . Damage Inflicted 945 | . 519 315 111 Guns 329 | . 245 70 14 Cannons 353 | . 229 70 54 Explosions 259 | . 45 175 39 Melee . | . . . . Ramming 4 | . . . 4 Kinetic 376 | . 252 70 54 Thermal 129 | . 45 70 14 Explosive 214 | . . 175 39 Electromagnetic 222 | . 222 . . Impact . | . . . . Slashing . | . . . . Piercing . | . . . . Highest Corruption . | . . . . Average Corruption . | . . . . Corruption Purged . | . . . . Overload Shots . | . . . . Overflow Damage 4 | . . 4 . Projectiles . | . . . . Explosions 4 | . . 4 . Melee . | . . . . Knockbacks 3 | . 3 . . Impact . | . . . . Kinetic 3 | . 3 . . Secondary . | . . . . Self-Inflicted Damage 240 | . 35 171 34 Shots 9 | . 1 6 2 Rammed 1 | . . . 1 Targets Rammed 2 | . . . 2 Kicked 1 | . . . 1 Crushed . | . . . . Highest Temperature 148 | . 148 72 48 Average Temperature 48 | . 55 30 15 Received Heat Transfer 475 | . 100 36 339 Siege Activations . | . . . . Robots Corrupted . | . . . . Combat Hostiles . | . . . . Parts Fried . | . . . . Impact Corruptions . | . . . . Robots Melted . | . . . . Combat Hostiles . | . . . . Parts Melted . | . . . . Heat Transferred 272 | . 50 185 37 Parts Sabotaged . | . . . . Parts Stolen . | . . . . Parts Stripped . | . . . . Power Chain Reactions 1 | . 1 . . Missiles Intercepted . | . . . . Alert | -11 -10 -9 -8 ------- Run | Scr Mat Mat Mat Peak Influence 252 | . 252 231 165 Average Influence 109 | . 114 106 135 Maximum Alert Level 1 | . 1 1 . Low Security (%) 89 | 100 87 84 100 Level 1 10 | . 12 15 . Level 2 . | . . . . Level 3 . | . . . . Level 4 . | . . . . Level 5 . | . . . . High Security . | . . . . Max Security . | . . . . Squads Dispatched 7 | . 3 3 1 Investigation 2 | . 2 . . Extermination . | . . . . Reinforcement 5 | . 1 3 1 Assault . | . . . . Garrison . | . . . . Intercept . | . . . . Construction Impeded . | . . . . Haulers Reinforced . | . . . . Stealth | -11 -10 -9 -8 --------- Run | Scr Mat Mat Mat Distress Signals 5 | . 3 . 2 Communications Jammed . | . . . . Distress Signals . | . . . . Times Spotted 44 | . 21 6 17 Peak Tracking Total 10 | . 6 2 10 Tactical Retreats 4 | . 2 . 2 Traps | -11 -10 -9 -8 ------- Run | Scr Mat Mat Mat Traps Triggered . | . . . . Indirectly . | . . . . Trap Hack Attempts . | . . . . Triggered . | . . . . Disarmed . | . . . . Reprogrammed . | . . . . Reused . | . . . . Traps Extracted . | . . . . Installed . | . . . . Triggered . | . . . . Machines | -11 -10 -9 -8 ---------- Run | Scr Mat Mat Mat Machines Disabled 5 | . . 3 2 Max in Single Turn 3 | . . 3 1 Machines Sabotaged . | . . . . Garrisons Compromised . | . . . . Overloaded Fab Kills . | . . . . Fab Network Shutdowns . | . . . . Hacking | -11 -10 -9 -8 --------- Run | Scr Mat Mat Mat Machines Accessed 3 | . 3 . . Terminals 3 | . 3 . . Fabricators . | . . . . Repair Stations . | . . . . Recycling Units . | . . . . Scanalyzers . | . . . . Garrison Access . | . . . . Total Hacks 11 | . 11 . . Successful 5 | . 5 . . Failed 6 | . 6 . . Catastrophic 2 | . 2 . . Database Lockouts . | . . . . Manual . | . . . . Terminals 11 | . 11 . . Fabricators . | . . . . Repair Stations . | . . . . Recycling Units . | . . . . Scanalyzers . | . . . . Garrison Access . | . . . . Terminal Hacks 5 | . 5 . . Record 1 | . 1 . . Branch Access Points 1 | . 1 . . Dispatch Records 1 | . 1 . . Transport Status 1 | . 1 . . Hauler Manifests 1 | . 1 . . Fabricator Hacks . | . . . . Repair Station Hacks . | . . . . Recycling Unit Hacks . | . . . . Scanalyzer . | . . . . Garrison Access Hacks . | . . . . Unauthorized Hacks . | . . . . Terminals . | . . . . Fabricators . | . . . . Repair Stations . | . . . . Recycling Units . | . . . . Scanalyzers . | . . . . Garrison Access . | . . . . Data Cores Recovered . | . . . . Used . | . . . . Hacking Detections 3 | . 3 . . Full Trace Events 2 | . 2 . . Feedback Events . | . . . . Feedback Blocked . | . . . . Robot Schematics Acquired . | . . . . Robots Built . | . . . . Matter . | . . . . Time . | . . . . Total Robot Build Rating . | . . . . Part Schematics Acquired . | . . . . Parts Built . | . . . . Matter . | . . . . Time . | . . . . Total Part Build Rating . | . . . . Parts Repaired . | . . . . Time . | . . . . Parts Recycled . | . . . . Recycled Matter . | . . . . Retrieved Matter . | . . . . Retrieved Components . | . . . . Parts Scanalyzed . | . . . . Part Schematics Acquired . | . . . . Parts Damaged . | . . . . Bothacking | -11 -10 -9 -8 ------------ Run | Scr Mat Mat Mat Used RIF Installer . | . . . . Robots Hacked . | . . . . Non-combat . | . . . . Combat . | . . . . Robot Hacks Applied . | . . . . Relay Couplers Released . | . . . . Robots Rewired . | . . . . Allies Hacked . | . . . . Hacks Repelled . | . . . . Allies | -11 -10 -9 -8 -------- Run | Scr Mat Mat Mat Total Allies . | . . . . Largest Group . | . . . . Highest-Rated Group . | . . . . Highest-Rated Ally . | . . . . Total Orders . | . . . . Ally Attacks . | . . . . Total Damage . | . . . . Kills . | . . . . Allies Corrupted . | . . . . Allies Melted . | . . . . Intel | -11 -10 -9 -8 ------- Run | Scr Mat Mat Mat Robot Analysis Total . | . . . . Derelict Logs Recovered . | . . . . Drone Launches . | . . . . Drone Recoveries . | . . . . Exploration | -11 -10 -9 -8 ------------- Run | Scr Mat Mat Mat Turns Passed 1060 | 60 508 291 201 Spaces Moved 587 | 43 270 170 104 Core 16 | 7 . . 9 Treads . | . . . . Legs 571 | 36 270 170 95 Wheels . | . . . . Hover . | . . . . Flight . | . . . . Fastest Speed 50 | 50 120 120 120 Average Speed 132 | 108 124 146 142 Slowest Speed 250 | 120 180 180 250 Overloaded Moves . | . . . . Propulsion Burnouts . | . . . . Robots Hopped . | . . . . Cave-ins Triggered . | . . . . Exploration Rate (%) 20 | 4 44 23 12 Regions Visited 3 Branch Regions . Pre-discovered Areas . | . . . . Known Exits Taken . | . . . . Unknown Exits Taken 3 | 1 1 1 . Scrap Searched . | . . . . Spaces Dug . | . . . . Terrain Destroyed 93 | . 2 78 13 Melee . | . . . . Projectile . | . . . . AOE 93 | . 2 78 13 Actions | -11 -10 -9 -8 --------- Run | Scr Mat Mat Mat Total 754 | 56 360 191 147 Wait 27 | . . . 27 Move 584 | 42 269 169 104 Hop . | . . . . Pick Up 33 | 8 20 3 2 Fast Attach . | . . . . Attach 12 | 6 3 . 3 Detach . | . . . . Swap 15 | . 10 4 1 Drop 18 | . 12 3 3 Fire 63 | . 46 12 5 Melee . | . . . . Ram . | . . . . Kick 2 | . . . 2 Crush . | . . . . Escape Stasis . | . . . . Rewire . | . . . . Trap . | . . . . Miscellaneous . | . . . . Route ------- -11/Scrapyard -10/Materials (discovered 3 exits: [*Mat x2] / Min) -9/Materials -8/Materials History --------- Turn | Location | Event 8 | -11/Scrapyard | Discovered new exit (range 16) 61 | -11/Scrapyard | Entered Materials 321 | -10/Materials | Build established: Mutant 383 | -10/Materials | Identified exit to Mines 426 | -10/Materials | Discovered new exit (range 13) 540 | -10/Materials | Discovered new exit (range 11) 569 | -10/Materials | Entered another Materials area 569 | -9/Materials | Evolved 2 slots: Propulsion x2 837 | -9/Materials | Discovered new exit (range 8) 860 | -9/Materials | Entered another Materials area 860 | -8/Materials | Evolved 2 slots: Utility x1, Weapon x1 1045 | -8/Materials | Core integrity fell below 50% 1053 | -8/Materials | Core integrity fell below 20% 1058 | -8/Materials | Lost 6 parts (1p2n1u2w) 1061 | -8/Materials | Destroyed by S-10 Pest with Light Assault Rifle Last Messages --------------- 00943_ Dropped Heat Sink. 00945_ Acquired Hrd. Medium Armor Plating. 00949_ Acquired Heat Sink. 00961_ W-25 Informer sends out distress signal. 00974_ Grenade Launcher destroyed. 00990_ Atomic Centrifuge disabled. [Achievement: Oops] 01004_ Kicked G-47 Trooper out of the way. 01005_ Slammed into G-47 Trooper. 01007_ Beam Rifle destroyed. 01016_ K-01 Serf collects debris. 01020_ Lgt. Ion Engine destroyed. 01020_ K-01 Serf collects debris. 01023_ Aluminum Leg destroyed. 01025_ K-01 Serf collects debris. 01025_ Lgt. Cannon destroyed. 01027_ Shield Generator destroyed. 01046_ S-10 Pest destroyed. 01052_ R-06 Scavenger collects Lgt. Ion Engine. 01055_ W-25 Informer sends out distress signal. Map ----- +----------------------------------------------------+ | ???????# ????????????????????????????????????????? | | ???????# ??????????????????????? ????????????????? | | ???????# #####?????????????????? ????????????????? | | ???????# ##????????????????# #???????????????? | | ???????# T" ????????????????? #??????????????? | | ???????# " ????????????????? +??????????????? | | ???????# ?????????????????? #??????????????? | | ???????# ??######??????????# #??????????????? | | ????????# #### #??????????# #############??? | | ????????# # #??????????# ??? | | ????????# # #??????????# ???? | | ????????+ / #??????????# ?????? | | ????????# # #??????????#!!! ! ! #??????? | | ????????# # ############!!! #??????? | | ######### # ## #!! !!! #??????? | | #####+# ## ! # !!! #??????? | | # ## # !!! #??????? | | # ## """ """ + #??????? | | ######### # """ ## """ """ # * #??????? | | ????????# # """ ## """ "" # #### #??????? | | ????????# # """ ## # #????? #??????? | | ????????# # ## [ # r#?????????????? | | ????????# ####+############### r#?????????????? | | ????????# ### w s h #?????????????? | | ????????# ^r g #?????????????? | | ????????# @ s #?????????????? | | ????????# ######### #########?????????????? | | ????????# #########+####??????????????????? | | ????????# # ! #??????????????????? | | ??????? # ! #??????????????????? | | ????? + #??????????????????? | | ???? !!! # #??????????????????? | | ???? !!! # #??????????????????? | | ?????##### !!! ##############??????????????????? | | ?????????# ????????????????????????????????? | | ?????????# ????????????????????????????????? | | ?????????# ????????????????????????????????? | | ???????????? ????????????????????????????????? | | ?????????????? ????????????????????????????????? | | ?????????????????????????????????????????????????? | | ?????????????????????????????????????????????????? | | ?????????????????????????????????????????????????? | | ?????????????????????????????????????????????????? | | ?????????????????????????????????????????????????? | | ?????????????????????????????????????????????????? | | ?????????????????????????????????????????????????? | | ?????????????????????????????????????????????????? | | ?????????????????????????????????????????????????? | | ?????????????????????????????????????????????????? | | ?????????????????????????????????????????????????? | +----------------------------------------------------+ Best States ------------- Heat Dissipation 41 Energy Generation 10 Energy Capacity 250 Matter Stores 268 Matter Capacity 300 Sight Range 16 Terrain Scan Density 10 Evasion (%) 40 Item Schematics ----------------- None Robot Schematics ------------------ None Fabricated ------------ Nothing Alien Tech Used ----------------- None Achievements -------------- Oops Challenges ------------ None Game ------ Seed DeepFlakScreen Manual? 0 Play Time 00:20:10 Cumulative 3.0 hours Start 2020.01.15 @ 00:17:27 End 2020.01.15 @ 00:37:27 Sessions 1 Manual Loads 0 Difficulty Rogue Special Mode None Game No. 8 Rogue 8 Adventurer 0 Explorer 0 Win Type - Total 0 Types 0/0/0/0/0/0/0 Lore% 10 Gallery% 6 Achievement% 8 Wizard Run 0 Options --------- ASCII 0 Keyboard 0 Movement Numpad Keybinds 0 Fullscreen 1 Font 18/X11Bold Map View 76x50 Tactical HUD 1 Map Filters NONE Filters NONE Steam 1 RUN: 3b35d13e-fe94-479f-99bc-65d51816b29a